fUSD/lending_fUSD_20251011
["ID","MTS","AMOUNT","RATE_DAILY","PERIOD"]
[390886886,1760194264498,-427.0,0.00018904,2]
[390886887,1760194264508,-427.0,0.00018904,2]
[390886888,1760194264519,-427.0,0.00018904,2]
[390886889,1760194264529,-427.0,0.00018904,2]
[390886890,1760194264538,-427.0,0.00018904,2]
[390886891,1760194264548,-427.0,0.00018904,2]
[390886892,1760194264558,-427.0,0.00018904,2]
[390886893,1760194264568,-427.0,0.00018904,2]
[390886894,1760194264583,-427.0,0.00018904,2]
[390886895,1760194264592,-427.0,0.00018904,2]
[390886896,1760194264602,-427.0,0.00018904,2]
[390886897,1760194264611,-427.0,0.00018904,2]
[390886898,1760194264622,-427.0,0.00018904,2]
[390886899,1760194264632,-427.0,0.00018904,2]
[390886900,1760194264642,-427.0,0.00018904,2]
[390886901,1760194264652,-427.0,0.00018904,2]
[390886902,1760194264661,-427.0,0.00018904,2]
[390886903,1760194264671,-427.0,0.00018904,2]
[390886904,1760194264680,-427.0,0.00018904,2]
[390886905,1760194264690,-427.0,0.00018904,2]
[390886906,1760194264699,-427.0,0.00018904,2]
[390886907,1760194264708,-427.0,0.00018904,2]
[390886908,1760194264718,-427.0,0.00018904,2]
[390886909,1760194264728,-427.0,0.00018904,2]
[390886910,1760194264737,-427.0,0.00018904,2]
[390886911,1760194264747,-427.0,0.00018904,2]
[390886912,1760194264757,-427.0,0.00018904,2]
[390886913,1760194264767,-427.0,0.00018904,2]
[390886914,1760194264776,-427.0,0.00018904,2]
[390886915,1760194264785,-427.0,0.00018904,2]
[390886916,1760194264795,-427.0,0.00018904,2]
[390886917,1760194264804,-427.0,0.00018904,2]
[390886918,1760194264813,-427.0,0.00018904,2]
[390886919,1760194264824,-427.0,0.00018904,2]
[390886920,1760194264834,-427.0,0.00018904,2]
[390886921,1760194264843,-427.0,0.00018904,2]
[390886922,1760194264852,-427.0,0.00018904,2]
[390886923,1760194264862,-427.0,0.00018904,2]
[390886924,1760194264966,-427.0,0.00018904,2]
[390886925,1760194264978,-427.0,0.00018904,2]
[390886926,1760194264988,-427.0,0.00018904,2]
[390886927,1760194264997,-427.0,0.00018904,2]
[390886928,1760194265006,-427.0,0.00018904,2]
[390886929,1760194265015,-427.0,0.00018904,2]
[390886930,1760194265024,-427.0,0.00018904,2]
[390886931,1760194265033,-153.0,0.00018904,2]
[390886932,1760194265043,-153.0,0.00018904,2]
[390886933,1760194265052,-3292.0,0.00018968,2]
[390886934,1760194265061,-500.0,0.00018973,2]
[390886935,1760194265071,-500.0,0.00018973,2]
[390886936,1760194265080,-500.0,0.00018973,2]
[390886937,1760194265090,-500.0,0.00018973,2]
[390886938,1760194265100,-500.0,0.00018973,2]
[390886939,1760194265109,-326.49586785,0.00018973,2]
[390886940,1760194265118,-500.0,0.00018973,2]
[390886941,1760194265127,-500.0,0.00018973,2]
[390886942,1760194265136,-165.49206283,0.00018973,2]
[390886943,1760194265145,-160.49561229,0.00018973,2]
[390886944,1760194265154,-500.0,0.00018973,2]
[390886945,1760194265163,-500.0,0.00018973,2]
[390886946,1760194265172,-500.0,0.00018973,2]
[390886947,1760194265182,-500.0,0.00018973,2]
[390886948,1760194265190,-500.0,0.00018973,2]
[390886949,1760194265199,-500.0,0.00018973,2]
[390886950,1760194265209,-500.0,0.00018973,2]
[390886951,1760194265218,-203.82493078,0.00018973,2]
[390886952,1760194265227,-500.0,0.00018973,2]
[390886953,1760194265237,-500.0,0.00018973,2]
[390886954,1760194265246,-500.1745572,0.00018973,2]
[390886955,1760194265255,-160.25661032,0.00018973,2]
[390886956,1760194265264,-500.34926765,0.00018973,2]
[390886957,1760194265274,-160.22135125,0.00018973,2]
[390886958,1760194265283,-500.2561938,0.00018973,2]
[390886959,1760194265292,-414.99072918,0.00018973,2]
[390886960,1760194265300,-160.27628069,0.00018973,2]
[390886961,1760194265309,-160.24842176,0.00018973,2]
[390886962,1760194265318,-500.0,0.00018973,2]
[390886963,1760194265327,-160.28585005,0.00018973,2]
[390886964,1760194265336,-500.19530901,0.00018973,2]
[390886965,1760194265346,-204.87023606,0.00018973,2]
[390886966,1760194265355,-500.0,0.00018973,2]
[390886967,1760194265364,-500.0,0.00018973,2]
[390886968,1760194265374,-500.0,0.00018973,2]
[390886969,1760194265383,-500.0,0.00018973,2]
[390886970,1760194265392,-500.0,0.00018973,2]
[390886971,1760194265401,-500.0,0.00018973,2]
[390886972,1760194265411,-500.3731077,0.00018973,2]
[390886973,1760194265419,-500.43060712,0.00018973,2]
[390886974,1760194265429,-562.79922811,0.00018973,2]
[390886975,1760194265438,-500.0,0.00018973,2]
[390886976,1760194265447,-500.0,0.00018973,2]
[390886977,1760194265457,-500.7490396,0.00018973,2]
[390886978,1760194265467,-161.44724478,0.00018973,2]
[390886979,1760194265476,-500.0,0.00018973,2]
[390886980,1760194265485,-324.63825813,0.00018973,2]
[390886981,1760194265494,-500.0,0.00018973,2]
[390886982,1760194265504,-500.0,0.00018973,2]
[390886983,1760194265514,-160.22396816,0.00018973,2]
[390886984,1760194265523,-500.0,0.00018973,2]
[390886985,1760194265532,-164.70710526,0.00018973,2]
[390886986,1760194265542,-500.0,0.00018973,2]
[390886987,1760194265551,-500.0,0.00018973,2]
[390886988,1760194265560,-500.26290145,0.00018973,2]
[390886989,1760194265570,-500.0,0.00018973,2]
[390886990,1760194265583,-340.07948803,0.00018973,2]
[390886991,1760194265592,-160.21716625,0.00018973,2]
[390886992,1760194265602,-160.24685783,0.00018973,2]
[390886993,1760194265611,-157.31671851,0.00018973,2]
[390886994,1760194265622,-500.0,0.00018973,2]
[390886995,1760194265631,-516.10484469,0.00018973,2]
[390886996,1760194265640,-208.00345415,0.00018973,2]
[390886997,1760194265649,-500.0,0.00018973,2]
[390886998,1760194265658,-500.0,0.00018973,2]
[390886999,1760194265667,-217.43162071,0.00018973,2]
[390887000,1760194265676,-500.0,0.00018973,2]
[390887001,1760194265685,-500.0,0.00018973,2]
[390887002,1760194265694,-500.0,0.00018973,2]
[390887003,1760194265703,-500.0,0.00018973,2]
[390887004,1760194265713,-500.0,0.00018973,2]
[390887005,1760194265723,-161.66668498,0.00018995,2]
[390887006,1760194265732,-6405.23591994,0.00018999,3]
[390887007,1760194265741,-300.0,0.00018999,2]
[390887008,1760194265750,-300.0,0.00018999,2]
[390887009,1760194265760,-300.0,0.00018999,2]
[390887010,1760194265769,-2492.36405693,0.00019,2]
[390887011,1760194265778,-2000.0,0.00019,2]
[390887012,1760194265787,-1585.0,0.00019,2]
[390887013,1760194265797,-1364.93137827,0.00019,3]
[390887014,1760194265807,-250000.0,0.00019,2]
[390887015,1760194265817,-552.32439429,0.00019,2]
[390887016,1760194265826,-443992.7181794,0.00019,2]
[390887017,1760194266681,-1445.58767714,0.00019,2]
[390887018,1760194266700,-622.22157899,0.00019,2]
[390887019,1760194266790,302.0,0.00014791,2]
[390887020,1760194266804,-76.328279,0.00014791,2]
[390887021,1760194266813,-269.54345533,0.00016737,2]
[390887022,1760194266826,-230.45654467,0.00016737,2]
[390887023,1760194266836,-21691.65825346,0.00019,2]
[390887024,1760194266845,-300.0,0.00019,2]
[390887025,1760194266855,-3548.42683337,0.00019,2]
[390887026,1760194266865,-3034.85837862,0.00019,2]
[390887027,1760194266874,-1000.0,0.00019034,2]
[390887028,1760194266884,-1425.0,0.0001904,2]
[390887029,1760194266893,-700.0,0.0001907,2]
[390887030,1760194266903,-1425.0,0.0001907,2]
[390887031,1760194266912,-300.0,0.00019099,2]
[390887032,1760194266921,-300.0,0.00019099,2]
[390887033,1760194266931,-302.85637029,0.00019099,2]
[390887034,1760194266940,-1000.0,0.000191,2]
[390887035,1760194266950,-1000.0,0.000191,2]
[390887036,1760194266959,-1000.0,0.000191,2]
[390887037,1760194266968,-1000.0,0.000191,2]
[390887038,1760194266978,-1000.0,0.000191,2]
[390887039,1760194266987,-1000.0,0.000191,2]
[390887040,1760194266996,-1000.0,0.000191,2]
[390887041,1760194267006,-1000.0,0.000191,2]
[390887042,1760194267015,-1000.0,0.000191,2]
[390887043,1760194267025,-1000.0,0.000191,2]
[390887044,1760194267034,-1000.0,0.000191,2]
[390887045,1760194267044,-1000.0,0.000191,2]
[390887046,1760194267053,-1000.0,0.000191,2]
[390887047,1760194267063,-1000.0,0.000191,2]
[390887048,1760194267073,-1000.0,0.000191,2]
[390887049,1760194267084,-1000.0,0.000191,2]
[390887050,1760194267094,-132917.26684995,0.000191,2]
[390887051,1760194268142,-265.96,0.00014635,2]
[390887052,1760194268798,-112.368279,0.00014635,2]
[390887053,1760194268808,-151.0,0.00014635,2]
[390887054,1760194268820,-294.657493,0.00014635,2]
[390887055,1760194268829,-151.0,0.00014635,2]
[390887056,1760194268839,-294.657493,0.00014641,2]
[390887057,1760194268849,-378.328279,0.00014641,2]
[390887058,1760194268859,-151.0,0.00014641,2]
[390887059,1760194268868,-294.657493,0.00014641,2]
[390887060,1760194268878,-151.0,0.00014641,2]
[390887061,1760194268888,-294.657493,0.00014767,2]
[390887062,1760194268897,-378.328279,0.00014767,2]
[390887063,1760194268906,-151.0,0.00014767,2]
[390887064,1760194268915,-378.328279,0.00014791,2]
[390887065,1760194268925,-294.657493,0.00014791,2]
[390887066,1760194268934,-294.657493,0.00014791,2]
[390887067,1760194268943,-378.328279,0.00014791,2]
[390887068,1760194268952,-151.0,0.00014791,2]
[390887069,1760194268962,-378.328279,0.00014791,2]
[390887070,1760194268971,-151.0,0.00014791,2]
[390887071,1760194268980,-893.033,0.000149,2]
[390887072,1760194268991,-156.283,0.000149,2]
[390887073,1760194269000,-200.0,0.00014999,2]
[390887074,1760194269010,-785.0,0.00016737,2]
[390887075,1760194269019,-8038.09230867,0.000191,2]
[390887076,1760194269030,-7919.14609321,0.000191,2]
[390887077,1760194269042,-1454.85491242,0.000191,2]
[390887078,1760194269053,-17659.94336561,0.000191,2]
[390887079,1760194271274,-500.0,0.00014251,2]
[390887080,1760194271284,-50.05300345,0.00014251,2]
[390887081,1760194271477,-388.73502227,0.00014251,2]
[390887082,1760194271487,-378.328279,0.00014635,2]
[390887083,1760194271496,-151.0,0.00014635,2]
[390887084,1760194271505,-151.0,0.00014635,2]
[390887085,1760194271516,-199.45086595,0.00014635,2]
[390887087,1760194272938,-95.20662705,0.00014635,2]
[390887088,1760194272947,-151.0,0.00014635,2]
[390887089,1760194272956,-151.0,0.00014635,2]
[390887090,1760194272966,-133.94337225,0.00014635,2]
[390887091,1760194273182,-17.05662775,0.00014635,2]
[390887092,1760194273191,-151.0,0.00014635,2]
[390887093,1760194273201,-378.328279,0.00014641,2]
[390887094,1760194273210,-151.0,0.00014641,2]
[390887095,1760194273219,-120.25643444,0.00014641,2]
[390887096,1760194273230,-30.74356556,0.00014641,2]
[390887097,1760194273239,-294.657493,0.00014641,2]
[390887098,1760194273248,-151.0,0.00014641,2]
[390887099,1760194273257,-151.0,0.00014641,2]
[390887100,1760194273268,-151.0,0.00014641,2]
[390887101,1760194273277,-151.0,0.00014641,2]
[390887102,1760194273287,-151.0,0.00014767,2]
[390887103,1760194273296,-294.657493,0.00014767,2]
[390887104,1760194273306,-378.328279,0.00014767,2]
[390887105,1760194273315,-151.0,0.00014767,2]
[390887106,1760194273324,-151.0,0.00014767,2]
[390887107,1760194273335,-294.657493,0.00014767,2]
[390887108,1760194273344,-151.0,0.00014767,2]
[390887109,1760194273353,-151.0,0.00014767,2]
[390887110,1760194273362,-151.0,0.00014767,2]
[390887111,1760194273371,-151.0,0.00014767,2]
[390887112,1760194273380,-151.0,0.00014791,2]
[390887113,1760194273389,-294.657493,0.00014791,2]
[390887114,1760194273398,-151.0,0.00014791,2]
[390887115,1760194273408,-294.657493,0.00014791,2]
[390887116,1760194273417,-378.328279,0.00014791,2]
[390887117,1760194273426,-151.0,0.00014791,2]
[390887118,1760194273435,-378.32827,0.00014791,2]
[390887119,1760194273444,-151.0,0.00014791,2]
[390887120,1760194273456,-151.0,0.00014791,2]
[390887121,1760194273466,-151.0,0.00014791,2]
[390887122,1760194273477,-294.657493,0.00014791,2]
[390887123,1760194273488,-294.657489,0.00014791,2]
[390887124,1760194273498,-151.0,0.00014791,2]
[390887125,1760194273509,-266.572656,0.00014791,2]
[390887126,1760194273520,-151.0,0.00014791,2]
[390887127,1760194273531,-151.0,0.00014791,2]
[390887128,1760194273541,-151.0,0.00014791,2]
[390887129,1760194273551,-151.0,0.00014791,2]
[390887130,1760194273560,-1000.0,0.000149,2]
[390887131,1760194273573,-150.0,0.00014999,2]
[390887132,1760194273591,-261.72434379,0.00015054,2]
[390887133,1760194273601,-277.73860711,0.00016438,2]
[390887134,1760194273610,-500.0,0.00016737,2]
[390887135,1760194273624,-500.0,0.00016737,2]
[390887136,1760194273633,-500.0,0.00016737,2]
[390887137,1760194273643,-500.0,0.00016737,2]
[390887138,1760194273653,-500.0,0.00016737,2]
[390887139,1760194273663,-500.0,0.00016737,2]
[390887140,1760194273673,-500.0,0.00016737,2]
[390887141,1760194273683,-500.0,0.00016737,2]
[390887142,1760194273692,-500.0,0.00016737,2]
[390887143,1760194273702,-500.0,0.00016737,2]
[390887144,1760194273712,-420.71594715,0.00016737,2]
[390887145,1760194273724,-79.28405285,0.00016737,2]
[390887146,1760194273734,-500.0,0.00016737,2]
[390887147,1760194273744,-500.0,0.00016737,2]
[390887148,1760194273753,-124.67094115,0.00016737,2]
[390887150,1760194289200,-453.0,0.00014251,2]
[390887151,1760194293368,-47.0,0.00014251,2]
[390887152,1760194293393,-255.0,0.00014251,2]
[390887153,1760194295355,-164.35433313,0.00014251,2]
[390887154,1760194295380,-137.64566687,0.00014251,2]
[390887174,1760194297740,-302.0,0.00014251,2]
[390887175,1760194300742,-60.35433313,0.00014251,2]
[390887176,1760194300769,-241.64566687,0.00014251,2]
[390887177,1760194302521,-258.35433313,0.00014251,2]
[390887178,1760194302546,-43.64566687,0.00014251,2]
[390887179,1760194304339,-302.0,0.00014251,2]
[390887181,1760194306715,-154.35433313,0.00014251,2]
[390887182,1760194306740,-147.64566687,0.00014251,2]
[390887223,1760194324288,-302.0,0.00014251,2]
[390887224,1760194326248,-4.67106458,0.00014251,2]
[390887225,1760194326271,-250.0,0.00014256,2]
[390887226,1760194326293,-47.32893542,0.00014262,15]
[390887232,1760194328813,-302.0,0.00014256,2]
[390887233,1760194330571,-302.0,0.00014256,2]
[390887262,1760194335119,-302.0,0.00014256,2]
[390887264,1760194336808,-302.0,0.00014256,2]
[390887268,1760194353874,-398.98200939,0.00014256,2]
[390887270,1760194355857,-302.0,0.00014256,2]
[390887272,1760194358221,-302.0,0.00014256,2]
[390887274,1760194363109,-289.01799061,0.00014256,2]
[390887275,1760194363131,-12.98200939,0.00014259,2]
[390887276,1760194365109,-302.0,0.00014259,2]
[390887278,1760194382713,-217.1463035,0.00014255,2]
[390887279,1760194382738,-84.8536965,0.00014259,2]
[390887280,1760194389488,-302.0,0.00014259,2]
[390887281,1760194392542,-563.0,0.00014259,2]
[390887296,1760194443348,-247.70256273,0.00013682,2]
[390887298,1760194447191,-196.45485104,0.00013682,2]
[390887300,1760194449757,-236.48326949,0.00013682,2]
[390887302,1760194456434,-264.26154624,0.00013682,2]
[390887329,1760194674575,471.0,0.00027,120]
[390887396,1760194998075,-76.1477705,0.00013682,2]
[390887397,1760194998102,-123.86125737,0.00013703,2]
[390887401,1760195058085,-26.13874263,0.00013703,2]
[390887402,1760195058108,-184.46547249,0.00013713,2]
[390887476,1760195242132,2777.0,0.00027397,120]
[390887547,1760195311559,251.44,6.79e-05,2]
[390887548,1760195311634,251.44,7.148e-05,2]
[390887549,1760195311861,251.44,7.505e-05,2]
[390887550,1760195312420,251.44,7.862e-05,2]
[390887551,1760195312592,251.44,8.22e-05,2]
[390887552,1760195312672,251.44,8.577e-05,2]
[390887553,1760195312732,251.44,8.934e-05,2]
[390887554,1760195312909,251.44,9.292e-05,2]
[390887555,1760195313114,251.44,9.649e-05,2]
[390887556,1760195313329,50.3685687,0.00010007,2]
[390887557,1760195313354,201.0714313,0.00010007,2]
[390887558,1760195313529,251.44,0.00010364,2]
[390887559,1760195313729,251.44,0.00010721,2]
[390887560,1760195313989,251.44,0.00011079,2]
[390887561,1760195314169,251.44,0.00011436,2]
[390887562,1760195314368,251.44,0.00011793,2]
[390887563,1760195314567,251.44,0.00012151,2]
[390887564,1760195314619,-10.53452751,0.00013713,2]
[390887565,1760195314828,233.45375048,0.00012508,2]
[390887566,1760195314853,17.98624952,0.00012508,2]
[390887567,1760195317950,-251.44,0.00012866,2]
[390887568,1760195317975,-51.27914322,0.00013223,2]
[390887570,1760195322372,-200.16085678,0.00013223,2]
[390887571,1760195322395,-148.09394622,0.0001358,2]
[390887576,1760195357770,-103.34605378,0.0001358,2]
[390887577,1760195357793,-245.12750689,0.00013587,2]
[390887578,1760195364870,-308.335711,0.00013587,2]
[390887579,1760195367350,-232.90658446,0.00013587,2]
[390887580,1760195368322,-222.27891555,0.00013587,2]
[390887585,1760195373047,-156.57366959,0.00013587,2]
[390887589,1760195381588,-232.43732568,0.00013587,2]
[390887590,1760195384749,-156.63850373,0.00013587,2]
[390887594,1760195402701,-569.75610364,0.00013587,2]
[390887597,1760195405082,-258.71690701,0.00013587,2]
[390887598,1760195409261,-181.84807794,0.00013587,2]
[390887600,1760195414543,-186.38069451,0.00013587,2]
[390887601,1760195414566,-98.9983274,0.00013701,2]
[390887619,1760195433196,-96.0016726,0.00013701,2]
[390887620,1760195433206,-921.9353776,0.00013718,2]
[390887621,1760195433251,-1578.0646224,0.00013718,2]
[390887622,1760195433261,-553.74144014,0.00013718,2]
[390887623,1760195433272,-181.42285397,0.00013718,2]
[390887624,1760195433282,-1200.0,0.00013722,2]
[390887625,1760195433292,-1600.0,0.00013723,2]
[390887626,1760195433302,-300.0,0.00013752,2]
[390887627,1760195433311,-412.0,0.00013795,2]
[390887628,1760195433321,-240.34808589,0.00013796,2]
[390887629,1760195433353,-619.35433313,0.00013796,2]
[390887630,1760195433364,-1166.3750416,0.00013796,2]
[390887631,1760195433375,-342.10812885,0.00013796,2]
[390887632,1760195433387,-131.81441053,0.00013796,2]
[390887633,1760195433396,-453.18558909,0.00013796,2]
[390887634,1760195433408,-1013.65353583,0.00013796,2]
[390887635,1760195433419,-300.0,0.00013796,2]
[390887636,1760195433431,-733.16087508,0.00013796,2]
[390887637,1760195433440,-2500.0,0.00013796,2]
[390887638,1760195433450,-199.0,0.00013966,2]
[390887639,1760195433461,-151.0,0.00014259,2]
[390887640,1760195433470,-511.0,0.00014259,2]
[390887641,1760195433480,-1226.65,0.00014259,2]
[390887642,1760195433489,-150.0,0.00014416,2]
[390887643,1760195433498,-321.61811988,0.00014416,2]
[390887644,1760195433508,-222.27891555,0.00014416,2]
[390887645,1760195433518,-606.1940951,0.00014416,2]
[390887646,1760195433528,-467.22709985,0.00014416,2]
[390887647,1760195433538,-277.0,0.00014417,2]
[390887648,1760195433547,-1713.92,0.00014417,2]
[390887649,1760195433557,-9999.99,0.00014417,2]
[390887650,1760195433566,-411.0,0.00014417,2]
[390887651,1760195433576,-168.0,0.00014419,2]
[390887652,1760195433586,-674.57952284,0.00014429,2]
[390887653,1760195433598,-462.42047716,0.00014429,2]
[390887654,1760195433615,-238.0,0.00014459,2]
[390887655,1760195433629,-157.0,0.00014475,2]
[390887656,1760195433639,-151.0,0.00014491,2]
[390887657,1760195433649,-151.0,0.00014491,2]
[390887658,1760195433659,-151.0,0.00014491,2]
[390887659,1760195433669,-151.0,0.00014491,2]
[390887660,1760195433679,-151.0,0.00014491,2]
[390887661,1760195433689,-200.0,0.00014491,2]
[390887662,1760195433699,-151.0,0.00014491,2]
[390887663,1760195433709,-151.0,0.00014491,2]
[390887664,1760195433719,-151.0,0.00014491,2]
[390887665,1760195433729,-151.0,0.00014491,2]
[390887666,1760195433739,-151.0,0.00014491,2]
[390887667,1760195433748,-151.0,0.00014491,2]
[390887668,1760195433758,-151.0,0.00014491,2]
[390887669,1760195433768,-151.0,0.00014491,2]
[390887670,1760195433778,-151.0,0.00014491,2]
[390887671,1760195433788,-151.0,0.00014491,2]
[390887672,1760195433798,-151.0,0.00014491,2]
[390887673,1760195433807,-151.0,0.00014491,2]
[390887674,1760195433817,-151.0,0.00014491,2]
[390887675,1760195433827,-151.0,0.00014491,2]
[390887676,1760195433837,-151.0,0.00014491,2]
[390887677,1760195433847,-151.0,0.00014491,2]
[390887678,1760195433858,-151.0,0.00014491,2]
[390887679,1760195433869,-151.0,0.00014491,2]
[390887680,1760195433879,-151.0,0.00014491,2]
[390887681,1760195433889,-151.0,0.00014491,2]
[390887682,1760195433899,-151.0,0.00014491,2]
[390887683,1760195433908,-200.0,0.00014491,2]
[390887684,1760195433920,-151.0,0.00014491,2]
[390887685,1760195433932,-151.0,0.00014491,2]
[390887686,1760195433942,-151.0,0.00014491,2]
[390887687,1760195433951,-151.0,0.00014491,2]
[390887688,1760195433963,-151.0,0.00014491,2]
[390887689,1760195433973,-151.0,0.00014491,2]
[390887690,1760195433983,-247.98200939,0.00014491,2]
[390887691,1760195433993,-151.0,0.00014491,2]
[390887692,1760195434005,-151.0,0.00014491,2]
[390887693,1760195434015,-151.0,0.00014491,2]
[390887694,1760195434024,-151.0,0.00014491,2]
[390887695,1760195434034,-151.0,0.00014491,2]
[390887696,1760195434043,-151.0,0.00014491,2]
[390887697,1760195434053,-151.0,0.00014491,2]
[390887698,1760195434063,-151.0,0.00014491,2]
[390887699,1760195434073,-151.0,0.00014491,2]
[390887700,1760195434083,-151.0,0.00014491,2]
[390887701,1760195434093,-151.0,0.00014491,2]
[390887702,1760195434102,-151.0,0.00014491,2]
[390887703,1760195434114,-151.0,0.00014491,2]
[390887704,1760195434124,-151.0,0.00014491,2]
[390887705,1760195434134,-151.0,0.00014491,2]
[390887706,1760195434143,-151.0,0.00014491,2]
[390887707,1760195434154,-151.0,0.00014491,2]
[390887708,1760195434165,-151.0,0.00014491,2]
[390887709,1760195434175,-151.0,0.00014491,2]
[390887710,1760195434184,-151.0,0.00014491,2]
[390887711,1760195434194,-151.0,0.00014491,2]
[390887712,1760195434203,-151.0,0.00014491,2]
[390887713,1760195434212,-151.0,0.00014491,2]
[390887714,1760195434222,-151.0,0.00014491,2]
[390887715,1760195434232,-151.0,0.00014491,2]
[390887716,1760195434241,-151.0,0.00014491,2]
[390887717,1760195434251,-151.0,0.00014491,2]
[390887718,1760195434260,-151.0,0.00014491,2]
[390887719,1760195434270,-151.0,0.00014491,2]
[390887720,1760195434280,-557.01186446,0.000145,2]
[390887721,1760195434289,-1495.0,0.00014501,2]
[390887722,1760195434299,-1474.0,0.00014507,2]
[390887723,1760195434309,-282.0,0.0001451,2]
[390887724,1760195434319,-168.0,0.00014514,2]
[390887725,1760195434328,-950.0,0.00014524,2]
[390887726,1760195434338,-910.0,0.00014583,2]
[390887727,1760195434348,-308.12365472,0.00014583,2]
[390887728,1760195434361,-395.8053,0.00014591,2]
[390887729,1760195434370,-2500.0,0.00014591,2]
[390887730,1760195434380,-1381.0,0.00014597,2]
[390887731,1760195434390,-168.0,0.00014608,2]
[390887732,1760195434399,-6782.77490782,0.00014623,2]
[390887733,1760195434409,-316.48,0.00014626,2]
[390887734,1760195434418,-168.0,0.00014637,2]
[390887735,1760195434429,-414.62261191,0.00014674,2]
[390887736,1760195434438,-80.85360937,0.00014681,2]
[390887737,1760195434460,-941.74639063,0.00014681,2]
[390887738,1760195434470,-339.63856933,0.0001469,2]
[390887739,1760195434479,-278.01172797,0.00014691,2]
[390887740,1760195434491,-500.77977203,0.00014691,2]
[390887741,1760195434500,-312.79924469,0.00014691,2]
[390887745,1760195438111,-1159.94436252,0.00014691,2]
[390887746,1760195438123,-4795.91340068,0.00014691,2]
[390887747,1760195438135,-4767.22391666,0.00014691,2]
[390887748,1760195438169,-851.1814562,0.00014691,2]
[390887749,1760195438181,-11574.39984868,0.00014691,2]
[390887750,1760195438337,-478.485,0.00014691,2]
[390887751,1760195438349,-865.15710188,0.00014691,2]
[390887906,1760195440143,-1608.49131959,0.00014691,2]
[390887909,1760195440155,-330.61136777,0.00014691,2]
[390887911,1760195440166,-779.04420036,0.00014691,2]
[390887913,1760195440177,-1699.24500001,0.00014691,2]
[390887917,1760195440204,-6929.68497933,0.00014691,2]
[390887919,1760195440217,-14028.77016017,0.00014691,2]
[390887922,1760195440229,-3600.0,0.00014691,2]
[390887924,1760195440240,-1400.0,0.00014691,2]
[390887926,1760195440252,-268.57922976,0.00014691,2]
[390887930,1760195440280,-1000.0,0.00014591,2]
[390887932,1760195440290,-6054.99908943,0.00014691,2]
[390887936,1760195440313,-756.2,0.00014691,2]
[390887998,1760195440890,-1.6e-07,0.00014691,2]
[390888311,1760195443948,-1921.65492579,0.00014691,2]
[390888318,1760195444014,-550.03331089,0.00014691,2]
[390888320,1760195444027,-1632.9339737,0.00014691,2]
[390888324,1760195444052,-631.89036925,0.00014691,2]
[390888327,1760195444071,-60992.50113213,0.00014691,2]
[390888549,1760195446108,-400.12344,0.00014691,2]
[390888594,1760195446374,-19040.72970429,0.00014691,2]
[390889781,1760195599669,500.0,0.00025671,120]
[390889813,1760195909268,2000.0,0.0002739,120]
[390889814,1760195922133,2000.0,0.0002739,120]
[390889819,1760195953554,1000.0,0.0002739,120]
[390889820,1760195961408,1000.0,0.0002739,120]
[390889821,1760195967979,1000.0,0.0002739,120]
[390889822,1760195976460,1000.0,0.0002739,120]
[390889825,1760196017788,-500.01551547,0.00013699,2]
[390889826,1760196021373,-195.81693167,0.00013699,2]
[390889842,1760196202616,200.0,0.000273,120]